bitfinex-derivatives/quotes_BTCF0:USTF0_20250928
["timestamp","ask_amount","ask_price","bid_price","bid_amount"]
[1759020109105,1.09880553,109710.0,109700.0,0.001]
[1759020109306,1.09880553,109710.0,109700.0,0.002]
[1759020111308,1.09880553,109710.0,109700.0,0.1144549]
[1759020111607,1.93276553,109710.0,109700.0,0.02335]
[1759020111996,1.93276553,109710.0,109700.0,0.1144549]
[1759020111997,1.09880553,109710.0,109700.0,0.1144549]
[1759020112205,1.93276553,109710.0,109700.0,0.1144549]
[1759020114409,1.93276553,109710.0,109700.0,0.30289823]
[1759020115004,1.93276553,109710.0,109700.0,0.1144549]
[1759020115203,1.93276553,109710.0,109700.0,0.30289823]
[1759020115496,1.93276553,109710.0,109700.0,0.1144549]
[1759020115699,1.93276553,109710.0,109700.0,0.002]
[1759020116905,2.12120886,109710.0,109700.0,0.002]
[1759020117503,1.93276553,109710.0,109700.0,0.002]
[1759020121510,2.12120886,109710.0,109700.0,0.002]
[1759020123203,1.93276553,109710.0,109700.0,0.1144549]
[1759020123503,0.5103622,109710.0,109700.0,0.30289823]
[1759020123702,1.41868333,109710.0,109700.0,0.30289823]
[1759020124808,0.58472333,109710.0,109700.0,0.30289823]
[1759020124995,1.41868333,109710.0,109700.0,0.30289823]
[1759020125602,1.50977993,109710.0,109700.0,0.30289823]
[1759020125795,0.67581993,109710.0,109700.0,0.30289823]
[1759020126005,0.39628,109710.0,109700.0,0.30289823]
[1759020126205,0.39628,109710.0,109700.0,0.50472156]
[1759020126403,1.23024,109710.0,109700.0,0.50472156]
[1759020126809,1.23024,109710.0,109700.0,0.1278349]
[1759020127106,0.39628,109710.0,109700.0,0.50472156]
[1759020127310,1.23024,109710.0,109700.0,0.50472156]
[1759020131613,0.39628,109710.0,109700.0,0.50472156]
[1759020132009,1.21755,109710.0,109700.0,0.90472156]
[1759020137011,1.3086466,109710.0,109700.0,0.90472156]
[1759020137211,1.3219266,109710.0,109700.0,0.90472156]
[1759020137418,1.3219266,109710.0,109700.0,0.89134156]
[1759020137718,1.51036993,109710.0,109700.0,0.70289823]
[1759020138717,1.51036993,109710.0,109700.0,0.89134156]
[1759020138917,1.3219266,109710.0,109700.0,0.89134156]
[1759020140021,1.23083,109710.0,109700.0,0.90468156]
[1759020140317,1.21755,109710.0,109700.0,0.90468156]
[1759020141215,1.23083,109710.0,109700.0,0.90468156]
[1759020141410,1.23083,109710.0,109700.0,0.5277949]
[1759020141617,1.23083,109710.0,109700.0,0.90468156]
[1759020143523,1.3219266,109710.0,109700.0,0.89134156]
[1759020143718,1.51036993,109710.0,109700.0,0.70289823]
[1759020144415,1.3219266,109710.0,109700.0,0.70289823]
[1759020144616,1.51036993,109710.0,109700.0,0.70289823]
[1759020146321,0.39691,109710.0,109700.0,0.70289823]
[1759020146523,1.41907333,109710.0,109700.0,0.71623823]
[1759020146816,1.23063,109710.0,109700.0,0.90468156]
[1759020147023,0.38363,109710.0,109700.0,0.90468156]
[1759020147214,1.21735,109710.0,109700.0,0.90468156]
[1759020147818,0.38363,109710.0,109700.0,0.90468156]
[1759020148023,1.21735,109710.0,109700.0,0.90468156]
[1759020148823,0.38363,109710.0,109700.0,0.90468156]
[1759020149121,1.21731,109710.0,109700.0,0.90468156]
[1759020150523,1.21731,109710.0,109700.0,0.77904194]
[1759020151826,1.21731,109710.0,109700.0,0.5277949]
[1759020152023,1.3216866,109710.0,109700.0,0.5144549]
[1759020152323,1.23059,109710.0,109700.0,0.76570194]
[1759020153526,1.21731,109710.0,109700.0,0.77904194]
[1759020154418,0.38363,109710.0,109700.0,0.77904194]
[1759020154717,1.21727,109710.0,109700.0,0.77904194]
[1759020155115,1.23055,109710.0,109700.0,0.77904194]
[1759020155319,1.23055,109710.0,109700.0,0.37904194]
[1759020157843,1.23055,109710.0,109700.0,0.44431382]
[1759020159542,1.23051,109710.0,109700.0,0.44431382]
[1759020160546,1.25350399,109710.0,109700.0,0.37904194]
[1759020162648,1.25350399,109710.0,109700.0,0.36570194]
[1759020165442,1.25350399,109710.0,109700.0,0.37904194]
[1759020165850,0.41990399,109710.0,109700.0,0.37904194]
[1759020166046,1.24014399,109710.0,109700.0,0.37904194]
[1759020166250,0.40662399,109710.0,109700.0,0.37904194]
[1759020166446,1.24014399,109710.0,109700.0,0.37904194]
[1759020170352,0.38363,109710.0,109700.0,0.44431382]
[1759020170647,1.21711,109710.0,109700.0,0.44431382]
[1759020172354,1.231,109710.0,109700.0,0.44431382]
[1759020172554,0.38363,109710.0,109700.0,0.44431382]
[1759020172854,1.21711,109710.0,109700.0,0.44431382]
[1759020174657,1.24024594,109710.0,109700.0,0.37904194]
[1759020175360,1.21711,109710.0,109700.0,0.37904194]
[1759020175560,1.24024585,109710.0,109700.0,0.37904194]
[1759020176463,1.24020585,109710.0,109700.0,0.37904194]
[1759020177463,0.40676585,109710.0,109700.0,0.37904194]
[1759020177651,1.24020585,109710.0,109700.0,0.37904194]
[1759020177963,0.40676585,109710.0,109700.0,0.37904194]
[1759020178163,1.24016585,109710.0,109700.0,0.37904194]
[1759020180159,0.40676585,109710.0,109700.0,0.37904194]
[1759020180364,1.24016585,109710.0,109700.0,0.37904194]
[1759020180566,0.40676585,109710.0,109700.0,0.37904194]
[1759020180756,0.3608,109710.0,109700.0,0.84431382]
[1759020180956,1.21624,109720.0,109710.0,0.1275366]
[1759020181164,0.40597357,109720.0,109710.0,0.37878364]
[1759020181463,1.23937357,109720.0,109710.0,0.37878364]
[1759020181852,0.40597357,109720.0,109710.0,0.37878364]
[1759020182057,0.38284,109720.0,109710.0,0.77878364]
[1759020182665,0.3608,109720.0,109710.0,0.84405552]
[1759020182966,0.3618,109720.0,109710.0,0.84405552]
[1759020183165,0.3618,109720.0,109710.0,0.77878364]
[1759020183363,0.3628,109720.0,109710.0,0.77878364]
[1759020183766,0.3628,109720.0,109710.0,0.84405552]
[1759020184265,0.3628,109720.0,109710.0,0.77878364]
[1759020184969,0.3628,109720.0,109710.0,0.84405552]
[1759020185261,0.3628,109720.0,109710.0,1.61210364]
[1759020185471,0.3628,109720.0,109710.0,1.67737552]
[1759020185861,0.3628,109720.0,109710.0,0.84405552]
[1759020186062,0.3628,109720.0,109710.0,1.67737552]
[1759020186961,0.3608,109720.0,109710.0,1.67933552]
[1759020187959,0.3608,109720.0,109710.0,0.84605552]
[1759020188266,0.3608,109720.0,109710.0,1.67929552]
[1759020189865,0.3608,109720.0,109710.0,1.75240448]
[1759020190069,0.3608,109720.0,109710.0,0.91916448]
[1759020190269,0.3608,109720.0,109710.0,1.75240448]
[1759020190461,0.3608,109720.0,109710.0,1.6871326]
[1759020190662,0.3608,109720.0,109710.0,0.8538926]
[1759020190963,0.3608,109720.0,109710.0,1.6870926]
[1759020191770,0.3608,109720.0,109710.0,0.8538926]
[1759020191965,0.3608,109720.0,109710.0,1.6870926]
[1759020193069,0.3608,109720.0,109710.0,0.8538926]
[1759020193270,0.3608,109720.0,109710.0,1.6870526]
[1759020196275,0.3608,109730.0,109720.0,0.1270083]
[1759020196481,0.3608,109730.0,109720.0,0.62950238]
[1759020196866,0.382,109740.0,109730.0,0.127]
[1759020197067,0.382,109740.0,109730.0,0.37824704]
[1759020197274,0.0212,109740.0,109730.0,0.37824704]
[1759020198970,0.0242,109740.0,109730.0,0.38735477]
[1759020199374,0.0272,109740.0,109730.0,0.38735477]
[1759020199874,0.0222,109740.0,109730.0,0.38735477]
[1759020200071,0.0232,109740.0,109730.0,0.38735477]
[1759020201173,0.0232,109740.0,109730.0,1.22155477]
[1759020201372,0.002,109740.0,109730.0,1.22155477]
[1759020204379,0.002,109740.0,109730.0,1.62155477]
[1759020204572,0.002,109740.0,109730.0,0.78735477]
[1759020204771,0.002,109740.0,109730.0,1.62135477]
[1759020205182,0.001,109740.0,109730.0,1.62135477]
[1759020205480,0.001,109740.0,109730.0,1.62235477]
[1759020205966,0.3608,109750.0,109740.0,0.0910717]
[1759020206172,0.38249,109750.0,109740.0,0.37878874]
[1759020207173,0.38349,109750.0,109740.0,0.37878874]
[1759020208275,0.38449,109750.0,109740.0,0.37878874]
[1759020212680,0.38449,109750.0,109740.0,0.5040972]
[1759020214382,0.39783,109750.0,109740.0,0.1275417]
[1759020214677,1.07717115,109750.0,109740.0,0.30190945]
[1759020214884,0.79783,109750.0,109740.0,0.30190945]
[1759020215071,0.79783,109750.0,109740.0,0.4901872]
[1759020215886,0.8888934,109750.0,109740.0,0.4901872]
[1759020216082,0.79783,109750.0,109740.0,0.4901872]
[1759020217383,0.79783,109750.0,109740.0,0.5040972]
[1759020217384,0.38449,109750.0,109740.0,0.5040972]
[1759020220975,0.3628,109750.0,109740.0,0.5040972]
[1759020222088,0.002,109750.0,109740.0,0.5040972]
[1759020222386,0.3608,109770.0,109760.0,0.1275251]
[1759020222588,0.3608,109770.0,109760.0,0.69235835]
[1759020222788,0.38249,109770.0,109760.0,1.3379206]
[1759020223086,0.38249,109770.0,109760.0,0.9613651]
[1759020223285,0.38249,109770.0,109760.0,0.5040806]
[1759020223488,0.38249,109770.0,109760.0,1.3379206]
[1759020223787,0.39249,109770.0,109760.0,1.3379206]
[1759020224383,0.38749,109770.0,109760.0,1.3379206]
[1759020224587,0.39049,109770.0,109760.0,1.3379206]
[1759020224884,0.02969,109770.0,109760.0,1.52619835]
[1759020225079,0.008,109770.0,109760.0,1.3379206]
[1759020225688,0.006,109770.0,109760.0,1.3379206]
[1759020226488,0.006,109770.0,109760.0,1.40935014]
[1759020229696,0.006,109770.0,109760.0,1.40947014]
[1759020229994,0.02797,109770.0,109760.0,1.40939014]
[1759020230188,0.38877,109770.0,109760.0,0.57551014]
[1759020230386,0.38877,109770.0,109760.0,1.40939014]
[1759020230387,0.40257,109770.0,109760.0,1.40939014]
[1759020230787,0.59084775,109770.0,109760.0,0.30189285]
[1759020230991,0.40257,109770.0,109760.0,0.30189285]
[1759020231189,0.68189405,109770.0,109760.0,0.30189285]
[1759020231386,1.08189405,109770.0,109760.0,0.30189285]
[1759020232789,1.10488613,109770.0,109760.0,0.30189285]
[1759020233697,1.01383983,109770.0,109760.0,0.30189285]
[1759020234297,1.10488613,109770.0,109760.0,0.30189285]
[1759020234793,1.10488613,109770.0,109760.0,0.0910551]
[1759020234998,1.10488613,109770.0,109760.0,0.27933285]
[1759020235398,1.08189405,109770.0,109760.0,0.30181285]
[1759020239000,1.08189405,109770.0,109760.0,0.1135351]
[1759020239299,1.08189405,109770.0,109760.0,0.30181285]
[1759020240502,1.08189405,109770.0,109760.0,0.1135351]
[1759020240695,1.08189405,109770.0,109760.0,0.30181285]
[1759020245100,1.08189405,109770.0,109760.0,0.27933285]
[1759020247203,1.10490508,109770.0,109760.0,0.27933285]
[1759020247505,1.08189405,109770.0,109760.0,0.27933285]
[1759020248105,1.08189405,109770.0,109760.0,0.30181285]
[1759020248307,1.10490769,109770.0,109760.0,0.30181285]
[1759020249002,1.10490769,109770.0,109750.0,0.0910633]
[1759020249003,0.0138,109740.0,109730.0,0.08775188]
[1759020249311,1.86959885,109740.0,109730.0,0.1135594]
[1759020249508,1.86959885,109740.0,109730.0,0.30183715]
[1759020249701,2.26959885,109740.0,109720.0,0.34463213]
[1759020249904,0.67609775,109730.0,109720.0,0.36666213]
[1759020250107,0.67609775,109730.0,109720.0,0.1131125]
[1759020250408,0.67309775,109730.0,109720.0,0.30139025]
[1759020250711,0.03594,109720.0,109710.0,0.36667093]
[1759020250900,0.39674,109720.0,109710.0,0.36667093]
[1759020251108,0.39674,109720.0,109710.0,0.30139905]
[1759020251500,0.39374,109720.0,109710.0,0.30139905]
[1759020251904,0.38974,109720.0,109710.0,0.1131213]
[1759020252101,0.38974,109720.0,109710.0,0.30139905]
[1759020252301,0.38974,109720.0,109710.0,0.30839905]
[1759020252700,0.38974,109720.0,109710.0,0.31439905]
[1759020253814,0.8573838,109720.0,109710.0,0.013]
[1759020254012,1.50246605,109720.0,109710.0,0.1261266]
[1759020254202,1.3141883,109720.0,109710.0,0.1261266]
[1759020254504,1.50246605,109720.0,109710.0,0.31440435]
[1759020256611,1.50246605,109720.0,109710.0,0.22330775]
[1759020256808,1.50234605,109720.0,109710.0,0.31440435]
[1759020257707,0.57801775,109720.0,109710.0,0.31440435]
[1759020258013,1.41133775,109720.0,109710.0,0.31440435]
[1759020260409,0.57801775,109720.0,109710.0,0.31440435]
[1759020260612,1.41117775,109720.0,109710.0,0.31440435]
[1759020261412,0.57801775,109720.0,109710.0,0.31440435]
[1759020261613,1.41113775,109720.0,109710.0,0.32714435]
[1759020262914,1.41113775,109720.0,109710.0,0.1261266]
[1759020263117,1.41113775,109720.0,109710.0,0.31440435]
[1759020263716,1.50222605,109720.0,109710.0,0.31440435]
[1759020266213,1.41113775,109720.0,109710.0,0.31440435]
[1759020266915,1.41113775,109720.0,109710.0,0.1261266]
[1759020267217,1.41113775,109720.0,109710.0,0.31440435]
[1759020271118,2.27878155,109720.0,109710.0,0.013]
[1759020271325,2.11349818,109720.0,109710.0,0.013]
[1759020271617,2.11349818,109720.0,109710.0,0.1040966]
[1759020272216,2.11349818,109720.0,109710.0,0.0970966]
[1759020272417,2.11549818,109720.0,109710.0,0.0970966]
[1759020272619,1.99225918,109720.0,109710.0,0.0910966]
[1759020274115,0.1261384,109710.0,109700.0,0.0910984]
[1759020274322,0.7382549,109710.0,109700.0,0.0910984]
[1759020275019,0.4869384,109710.0,109700.0,0.1137984]
[1759020275220,1.4803565,109710.0,109700.0,0.1137984]
[1759020275419,1.5724531,109710.0,109700.0,0.1137984]
[1759020276224,1.59547144,109710.0,109700.0,0.1137984]
[1759020277915,0.1261532,109690.0,109680.0,0.1276475]
[1759020278122,1.9330297,109690.0,109680.0,0.1138175]
[1759020278826,1.6817132,109690.0,109680.0,0.1138175]
[1759020279028,1.6817132,109690.0,109680.0,0.1208175]
[1759020279222,1.95607377,109690.0,109680.0,0.1208175]
[1759020279622,1.12211377,109690.0,109680.0,0.1208175]
[1759020279830,1.95595377,109690.0,109680.0,0.1208175]
[1759020280621,1.95587377,109690.0,109680.0,0.1208175]
[1759020281329,1.95591377,109690.0,109680.0,0.1208175]
[1759020281828,1.95583377,109690.0,109680.0,0.1208175]
[1759020283429,1.12211377,109690.0,109680.0,0.1208175]
[1759020283729,1.95591377,109690.0,109680.0,0.1208175]
[1759020286625,1.03100057,109690.0,109680.0,0.1208175]
[1759020286832,1.86448057,109690.0,109680.0,0.1208175]
[1759020287034,1.95559377,109690.0,109680.0,0.1208175]
[1759020287332,1.95557328,109690.0,109680.0,0.1208175]
[1759020287637,1.12209328,109690.0,109680.0,0.1208175]
[1759020287838,1.95561328,109690.0,109680.0,0.1208175]
[1759020288036,1.0990697,109690.0,109680.0,0.1208175]
[1759020288329,1.9324697,109690.0,109680.0,0.1208175]
[1759020289031,1.0990697,109690.0,109680.0,0.1208175]
[1759020289229,1.9324697,109690.0,109680.0,0.1208175]
[1759020289633,1.6811532,109690.0,109680.0,0.1208175]
[1759020291033,1.59004,109690.0,109680.0,0.1208175]
[1759020291231,0.04524383,109690.0,109680.0,1.0365905]
[1759020291435,0.02222,109690.0,109680.0,1.0365905]
[1759020291633,0.38302,109690.0,109680.0,0.785274]
[1759020291828,0.39578,109690.0,109680.0,0.785274]
[1759020292729,0.38302,109690.0,109680.0,0.785274]
[1759020292930,0.3608,109700.0,109690.0,0.1259032]
[1759020293134,0.3608,109700.0,109690.0,0.3772197]
[1759020293335,0.3608,109700.0,109690.0,0.7772197]
[1759020293637,0.38236,109700.0,109690.0,0.7772197]
[1759020294339,0.38236,109700.0,109690.0,0.7792197]
[1759020294736,0.38236,109700.0,109690.0,0.85299941]
[1759020295039,0.3608,109700.0,109690.0,0.85299941]
[1759020295839,0.3608,109700.0,109690.0,1.68643941]
[1759020302446,0.3608,109700.0,109690.0,1.68667941]
[1759020302641,0.38236,109700.0,109690.0,0.45299941]
[1759020302842,0.39512,109700.0,109690.0,0.1157632]
[1759020303037,1.22864,109700.0,109690.0,0.1157632]
[1759020303249,1.3197449,109700.0,109690.0,0.1157632]
[1759020303454,1.9710614,109700.0,109690.0,0.0941132]
[1759020303653,1.9941131,109700.0,109690.0,0.0941132]
[1759020306353,1.9032882,109700.0,109690.0,0.1157632]
[1759020306556,1.8802365,109700.0,109690.0,0.1157632]
[1759020306857,1.81186106,109700.0,109690.0,0.1157632]
[1759020307459,0.97806106,109700.0,109690.0,0.1157632]
[1759020307757,1.81178106,109700.0,109690.0,0.1157632]
[1759020309458,1.81194106,109700.0,109690.0,0.1157632]
[1759020311160,1.90304596,109700.0,109690.0,0.1157632]
[1759020313066,0.97806106,109700.0,109690.0,0.1157632]
[1759020313262,0.72674456,109700.0,109690.0,0.1157632]
[1759020313561,1.81150106,109700.0,109690.0,0.1157632]
[1759020314261,1.90260596,109700.0,109690.0,0.1157632]
[1759020317262,1.90260596,109700.0,109690.0,0.0941132]
[1759020317772,1.90260596,109700.0,109690.0,0.1172232]
[1759020319464,0.97806106,109700.0,109690.0,0.1172232]
[1759020319665,1.81166106,109700.0,109690.0,0.1172232]
[1759020319965,1.90276596,109700.0,109690.0,0.1172232]
[1759020323569,1.90276596,109700.0,109690.0,0.0941132]
[1759020328162,1.92587332,109700.0,109690.0,0.0941132]
[1759020331083,2.0005632,109700.0,109690.0,0.0941132]
[1759020333472,2.0005632,109700.0,109690.0,0.3811697]
[1759020333473,0.34985192,109700.0,109690.0,0.3811697]
[1759020333670,0.33709192,109700.0,109690.0,0.7811697]
[1759020333870,0.29242456,109700.0,109690.0,0.84644158]
[1759020334265,0.31468456,109700.0,109690.0,0.84644158]
[1759020334464,0.29242456,109700.0,109690.0,0.85566959]
[1759020334673,1.2165,109710.0,109700.0,0.1268449]
[1759020334962,1.2165,109710.0,109700.0,0.90363968]
[1759020334963,0.3608,109710.0,109700.0,0.90363968]
[1759020335172,0.38306,109710.0,109700.0,0.90363968]
[1759020336878,0.38406,109710.0,109700.0,0.90363968]
[1759020339583,0.38406,109710.0,109700.0,0.50363968]
[1759020340078,0.001,109710.0,109700.0,1.09203707]
[1759020340468,0.001,109710.0,109700.0,0.75730895]
[1759020341180,0.001,109710.0,109700.0,1.59066895]
[1759020342781,0.001,109710.0,109700.0,1.59062895]
[1759020342977,0.001,109710.0,109700.0,1.95142895]
[1759020343377,0.001,109710.0,109700.0,1.11810895]
[1759020343581,0.001,109710.0,109700.0,1.95142895]
[1759020344783,0.001,109710.0,109700.0,1.11810895]
[1759020345085,0.001,109710.0,109700.0,1.95142895]
[1759020345270,0.001,109710.0,109700.0,1.88615707]
[1759020345475,0.001,109710.0,109700.0,1.05283707]
[1759020345879,0.001,109710.0,109700.0,1.88611707]
[1759020348577,1e-07,109710.0,109700.0,1.95138895]
[1759020354786,1e-07,109710.0,109700.0,1.88611707]
[1759020356289,1e-07,109710.0,109700.0,1.88603707]
[1759020356583,0.3608,109730.0,109710.0,0.0910943]
[1759020356887,0.3608,109730.0,109720.0,1.52601047]
[1759020357276,0.3608,109740.0,109730.0,0.12761]
[1759020357474,0.38261,109750.0,109740.0,0.1276017]
[1759020357689,0.38261,109750.0,109740.0,0.50439648]
[1759020358486,0.38661,109750.0,109740.0,0.50439648]
[1759020358674,0.40028,109750.0,109740.0,0.50439648]
[1759020359189,0.40028,109750.0,109740.0,0.1276017]
[1759020359391,0.40028,109750.0,109740.0,0.50439648]
[1759020359583,0.40428,109750.0,109740.0,0.50439648]
[1759020359780,1.08374029,109750.0,109720.0,0.1049483]
[1759020359986,0.03548,109740.0,109730.0,0.30214419]
[1759020360179,0.58467739,109740.0,109730.0,0.30214419]
[1759020360386,0.1265594,109730.0,109720.0,0.02267]
[1759020360594,0.03548,109720.0,109710.0,0.1137661]
[1759020360782,0.77307478,109720.0,109710.0,0.1137661]
[1759020360982,0.77307478,109720.0,109710.0,0.30216349]
[1759020360983,0.58467739,109720.0,109710.0,0.30216349]
[1759020361991,0.58467739,109720.0,109710.0,0.30416349]
[1759020362687,0.58467739,109720.0,109710.0,0.30516349]
[1759020363995,0.86416248,109720.0,109710.0,0.0940961]
[1759020364189,1.28722563,109720.0,109710.0,0.0940961]
[1759020365290,2.12070563,109720.0,109710.0,0.0940961]
[1759020367293,2.12070563,109720.0,109710.0,0.003]
[1759020367988,1.28722563,109720.0,109710.0,0.003]
[1759020368293,2.12086563,109720.0,109710.0,0.003]
[1759020368696,1.28722563,109720.0,109710.0,0.0940961]
[1759020368899,2.12102563,109720.0,109710.0,0.0940961]
[1759020371400,1.36071407,109720.0,109710.0,0.0940961]
[1759020371605,2.19443407,109720.0,109710.0,0.0940961]
[1759020371794,1.36071407,109720.0,109710.0,0.0940961]
[1759020371998,2.19435407,109720.0,109710.0,0.0940961]
[1759020372997,1.36071407,109720.0,109710.0,0.0940961]
[1759020373197,2.19431407,109720.0,109710.0,0.0940961]
[1759020374603,2.19419407,109720.0,109710.0,0.0940961]
[1759020374902,2.19419407,109720.0,109710.0,0.003]
[1759020379107,1.36071407,109720.0,109710.0,0.094096]
[1759020379295,2.19399407,109720.0,109710.0,0.094096]
[1759020380209,1.36071407,109720.0,109710.0,0.094096]
[1759020380507,2.19399407,109720.0,109710.0,0.094096]
[1759020381609,1.36071407,109720.0,109710.0,0.094096]
[1759020382018,2.19399407,109720.0,109710.0,0.094096]
[1759020384517,1.36071407,109720.0,109710.0,0.094096]
[1759020384717,2.19415407,109720.0,109710.0,0.094096]
[1759020387622,2.19415407,109720.0,109700.0,0.18839739]
[1759020387623,0.1283527,109690.0,109680.0,0.17890288]
[1759020387829,0.03724,109680.0,109670.0,0.11374037]
[1759020388022,0.58643739,109680.0,109670.0,0.11374037]
[1759020389126,0.86595628,109680.0,109670.0,0.11374777]
[1759020389826,0.85895628,109680.0,109670.0,0.11374777]
[1759020390026,0.85895628,109680.0,109670.0,0.11874777]
[1759020390629,0.85895628,109680.0,109670.0,0.12374777]
[1759020391925,1.44735367,109680.0,109670.0,0.01010797]
[1759020392126,0.03092,109660.0,109640.0,0.07794188]
[1759020392318,0.58643739,109650.0,109640.0,0.126329]
[1759020392826,0.58643739,109650.0,109640.0,0.0911547]
[1759020392827,0.67758379,109650.0,109640.0,0.0911547]
[1759020393134,0.58650234,109650.0,109640.0,0.0911547]
[1759020393425,0.86604613,109650.0,109640.0,0.001]
[1759020393630,0.58650234,109650.0,109640.0,0.0921547]
[1759020394234,1.42086234,109650.0,109640.0,0.0951547]
[1759020394531,1.48499106,109650.0,109640.0,0.0941547]
[1759020395129,1.48495106,109650.0,109640.0,0.0941547]
[1759020395323,1.48495106,109650.0,109640.0,0.1166647]
[1759020396036,0.65071106,109650.0,109640.0,0.1166647]
[1759020396335,1.55651442,109650.0,109640.0,0.1166647]
[1759020396930,0.72239442,109650.0,109640.0,0.1166647]
[1759020397135,1.55643442,109650.0,109640.0,0.1166647]
[1759020398532,1.21916495,109650.0,109640.0,0.78094081]
[1759020398733,1.21916495,109650.0,109640.0,0.5293347]
[1759020398930,0.38512495,109650.0,109640.0,0.5293347]
[1759020399236,1.21916495,109650.0,109640.0,0.78094081]
[1759020399437,0.38512495,109650.0,109640.0,0.38094081]
[1759020399735,0.38612495,109650.0,109640.0,0.38094081]
[1759020401136,0.38412495,109650.0,109640.0,0.38094081]
[1759020401628,0.38412495,109650.0,109640.0,0.78094081]
[1759020401828,0.38412495,109650.0,109640.0,0.38094081]
[1759020404338,0.28412495,109650.0,109640.0,0.38094081]
[1759020404529,0.30738495,109650.0,109640.0,0.38094081]
[1759020408543,6.495e-05,109650.0,109640.0,1.39334692]
[1759020409039,0.00206495,109650.0,109640.0,1.39334692]
[1759020409438,5e-08,109650.0,109640.0,1.39334692]
[1759020409829,0.00100005,109650.0,109640.0,1.39034692]
[1759020410442,0.00106376,109650.0,109640.0,1.39034692]
[1759020410642,6e-08,109650.0,109640.0,1.39034692]
[1759020410937,0.38338,109680.0,109670.0,0.1264898]
[1759020411142,0.38338,109680.0,109670.0,0.37809591]
[1759020411644,0.02258,109680.0,109670.0,0.37809591]
[1759020411945,0.38338,109690.0,109680.0,0.1264815]
[1759020412244,0.38338,109690.0,109680.0,0.37808761]
[1759020413146,0.39238,109690.0,109680.0,0.37908761]
[1759020413641,0.40138,109690.0,109680.0,0.37908761]
[1759020414247,0.018,109690.0,109680.0,1.39149372]
[1759020414446,0.018,109690.0,109680.0,1.1489512]
[1759020415245,0.018,109690.0,109680.0,1.40055731]
[1759020416347,0.018,109690.0,109680.0,2.23435731]
[1759020417343,0.009,109690.0,109680.0,2.23435731]
[1759020417544,0.38338,109710.0,109700.0,0.1264653]
[1759020417749,0.38338,109710.0,109700.0,0.37807141]
[1759020418245,0.38338,109710.0,109700.0,0.1264653]
[1759020418547,0.38338,109710.0,109700.0,0.37807141]
[1759020418740,0.39638,109710.0,109700.0,0.37907141]
[1759020419150,0.40638,109710.0,109700.0,0.37907141]
[1759020421852,0.40638,109710.0,109700.0,0.1274653]
[1759020429857,0.41539,109710.0,109700.0,0.1141653]
[1759020430157,0.41539,109710.0,109700.0,0.1268553]
[1759020430346,0.40638,109710.0,109700.0,0.1268553]
[1759020431257,0.3838,109710.0,109700.0,0.37846141]
[1759020431454,0.66565611,109710.0,109700.0,0.1141653]
[1759020431756,1.44944973,109710.0,109700.0,0.0921053]
[1759020431956,1.54054673,109710.0,109700.0,0.1140053]
[1759020432148,1.51755311,109710.0,109700.0,0.1140053]
[1759020432347,1.54055415,109710.0,109700.0,0.0921053]
[1759020432548,1.19785104,109710.0,109700.0,0.1140053]
[1759020432851,1.62719104,109710.0,109700.0,0.37830141]
[1759020433143,1.60415,109710.0,109700.0,0.37830141]
[1759020433847,1.60411,109710.0,109700.0,0.37830141]
[1759020434050,0.76571,109710.0,109700.0,0.37830141]
[1759020437961,0.76571,109710.0,109700.0,0.1266953]
[1759020438265,0.75571,109710.0,109700.0,0.37730141]
[1759020438462,0.74771,109710.0,109700.0,0.37730141]
[1759020439057,0.77096154,109710.0,109700.0,0.37730141]
[1759020442465,1.60848154,109710.0,109700.0,0.37730141]
[1759020446569,1.60848154,109710.0,109700.0,0.1256953]
[1759020446770,1.60848154,109710.0,109700.0,0.37730141]
[1759020452376,1.60852688,109710.0,109700.0,0.37730141]
[1759020454775,0.77100688,109710.0,109700.0,0.37730141]
[1759020454978,1.60700688,109710.0,109700.0,0.37730141]
[1759020455680,0.77100688,109710.0,109700.0,0.37730141]
[1759020455978,1.60684688,109710.0,109700.0,0.37730141]
[1759020456579,1.60684688,109710.0,109700.0,0.50255244]
[1759020456973,0.77100688,109710.0,109700.0,0.50255244]
[1759020457173,1.60680688,109710.0,109700.0,0.50255244]
[1759020457377,0.74989688,109710.0,109700.0,0.90255244]
[1759020457577,0.7266,109710.0,109700.0,0.90255244]
[1759020459484,0.7266,109710.0,109700.0,0.50255244]
[1759020462483,0.3658,109710.0,109700.0,0.50255244]
[1759020462676,0.005,109710.0,109700.0,1.26335244]
[1759020462875,0.005,109710.0,109700.0,1.51705289]
[1759020465689,0.005,109710.0,109700.0,1.32862432]
[1759020465983,0.005,109710.0,109700.0,2.16390432]
[1759020466587,1.06809557,109710.0,109700.0,0.03459]
[1759020466773,1.10507725,109710.0,109690.0,0.16968518]
[1759020466978,0.57199857,109700.0,109690.0,0.31445187]
[1759020469482,0.57972857,109700.0,109690.0,0.31445187]
[1759020469882,0.57299857,109700.0,109690.0,0.31445187]
[1759020471688,0.66410387,109700.0,109690.0,0.31445187]
[1759020472176,1.26026244,109700.0,109690.0,0.02161]
[1759020472384,0.1274736,109690.0,109680.0,0.19212838]
[1759020472693,0.67670217,109690.0,109680.0,0.17883378]
[1759020472986,1.92996547,109690.0,109680.0,0.02244]
[1759020473284,1.91138217,109690.0,109670.0,0.17867554]
[1759020473490,0.39363,109680.0,109670.0,0.38954411]
[1759020473693,0.57136857,109680.0,109670.0,0.38954411]
[1759020473988,0.56936857,109680.0,109670.0,0.38954411]
[1759020474491,0.56936857,109680.0,109670.0,0.39254411]
[1759020474684,0.38094,109680.0,109670.0,0.39254411]
[1759020474887,0.56936857,109680.0,109670.0,0.38954411]
[1759020475087,0.56936857,109680.0,109670.0,0.39254411]
[1759020475291,0.56936857,109680.0,109670.0,0.32727223]
[1759020475589,0.38094,109680.0,109670.0,0.32927223]
[1759020475800,0.38094,109680.0,109670.0,0.39454411]
[1759020476289,0.38094,109680.0,109670.0,0.32927223]
[1759020478989,0.38094,109680.0,109670.0,0.22916857]
[1759020479191,1.44703761,109680.0,109670.0,0.005]
[1759020479387,2.48000332,109680.0,109670.0,0.005]
[1759020479581,2.48000297,109680.0,109670.0,0.005]
[1759020480189,2.47996297,109680.0,109670.0,0.005]
[1759020480697,2.47992297,109680.0,109670.0,0.005]
[1759020481194,2.45968904,109680.0,109670.0,0.002]
[1759020481389,2.4839207,109680.0,109660.0,0.091136]
[1759020481592,0.67671877,109670.0,109660.0,0.113576]
[1759020481800,0.86514734,109670.0,109660.0,0.091136]
[1759020482485,0.0993485,109660.0,109650.0,0.0911405]
[1759020482684,1.69454564,109660.0,109650.0,0.0911405]
[1759020482895,2.09450564,109660.0,109650.0,0.0911405]
[1759020483898,2.09450564,109660.0,109650.0,0.0921405]
[1759020484399,1.26014564,109660.0,109650.0,0.0921405]